bitfinex/quotes_BTCUSD_20241120
["timestamp","ask_amount","ask_price","bid_price","bid_amount"]
[1732070516050,0.0008542,91745.0,91730.0,0.00218007]
[1732070516485,0.0008542,91745.0,91730.0,0.19711989]
[1732070517659,0.0008542,91745.0,91733.0,0.1]
[1732070518621,0.0008542,91745.0,91735.0,0.1]
[1732070520952,0.0008542,91745.0,91734.0,0.19565345]
[1732070521137,0.0008542,91745.0,91735.0,0.1]
[1732070524349,0.0008542,91745.0,91738.0,0.1]
[1732070525465,0.0008542,91745.0,91743.0,0.09781965]
[1732070528066,0.0008542,91745.0,91735.0,0.0017084]
[1732070528067,0.0008542,91745.0,91744.0,0.09781965]
[1732070528299,0.0008542,91745.0,91744.0,0.34456681]
[1732070528476,0.0008542,91745.0,91744.0,0.1]
[1732070528700,0.0008542,91745.0,91744.0,0.34446315]
[1732070529163,0.0008542,91745.0,91744.0,0.1]
[1732070529399,0.0008542,91745.0,91744.0,0.19554942]
[1732070529600,0.0008542,91745.0,91744.0,0.29554942]
[1732070531511,0.0008542,91745.0,91744.0,0.1]
[1732070531633,0.0008542,91745.0,91744.0,0.00217987]
[1732070531931,0.0008542,91745.0,91744.0,0.34664302]
[1732070532161,0.0008542,91745.0,91744.0,0.38901335]
[1732070532378,0.0008542,91745.0,91744.0,0.38890908]
[1732070532589,0.0008542,91745.0,91744.0,0.1445502]
[1732070532806,0.0008542,91745.0,91744.0,0.0445502]
[1732070533016,0.0008542,91745.0,91744.0,0.04672981]
[1732070533233,0.0008542,91745.0,91744.0,0.00217961]
[1732070533412,0.0008542,91745.0,91739.0,0.39348017]
[1732070533413,0.0008542,91745.0,91740.0,0.00217961]
[1732070533634,0.0008542,91745.0,91741.0,0.10906255]
[1732070533838,0.0008542,91745.0,91742.0,0.10217961]
[1732070534055,0.0008542,91745.0,91742.0,0.21124216]
[1732070534483,0.0008542,91753.0,91743.0,0.10906255]
[1732070534706,0.0008542,91753.0,91751.0,0.24656195]
[1732070534958,0.0008542,91753.0,91751.0,0.24656153]
[1732070535289,0.0008542,91753.0,91752.0,0.0021795]
[1732070535416,0.0008542,91753.0,91752.0,0.19759488]
[1732070535704,0.0008542,91753.0,91752.0,0.11124205]
[1732070535908,0.001711,91770.0,91753.0,0.1824]
[1732070536094,0.001711,91770.0,91756.0,0.1]
[1732070536299,0.001711,91770.0,91756.0,0.45534124]
[1732070536508,0.001711,91770.0,91756.0,0.20906255]
[1732070536810,0.001711,91770.0,91759.0,0.01]
[1732070536962,0.001711,91770.0,91768.0,0.09763393]
[1732070537176,0.001711,91770.0,91769.0,0.0021791]
[1732070537388,0.001711,91770.0,91769.0,0.29728245]
[1732070537608,0.001711,91770.0,91769.0,0.29510335]
[1732070537822,0.0835074,91786.0,91770.0,0.1]
[1732070538016,0.0835074,91786.0,91776.0,0.09754752]
[1732070538480,0.1313114,91777.0,91774.0,0.1]
[1732070538482,0.24037395,91777.0,91771.0,0.09754752]
[1732070538682,0.10906255,91776.0,91768.0,0.1]
[1732070538922,0.00272433,91775.0,91768.0,0.1]
[1732070539147,0.10906255,91774.0,91770.0,0.04490847]
[1732070539378,0.10906255,91774.0,91768.0,0.1]
[1732070539379,0.0027243,91773.0,91768.0,0.1]
[1732070539634,0.00464526,91773.0,91755.0,0.09750782]
[1732070540073,0.00464526,91773.0,91756.0,0.1]
[1732070540306,0.0027243,91772.0,91756.0,0.1]
[1732070540760,0.00272441,91776.0,91756.0,0.1]
[1732070541017,0.10906255,91775.0,91756.0,0.1]
[1732070541197,0.00272441,91774.0,91755.0,0.04424175]
[1732070541406,0.11370301,91774.0,91755.0,0.04424175]
[1732070541632,0.11370301,91774.0,91754.0,0.09750782]
[1732070541841,0.00464046,91774.0,91755.0,0.00217953]
[1732070542283,0.00272441,91774.0,91756.0,0.09750782]
[1732070542515,0.0027243,91773.0,91757.0,0.00217944]
[1732070542726,0.00272423,91776.0,91757.0,0.09968726]
[1732070543434,0.00272423,91776.0,91757.0,0.00217944]
[1732070543632,0.00272423,91776.0,91756.0,0.09750782]
[1732070544083,0.00272423,91776.0,91756.0,0.09744265]
[1732070544339,0.00272423,91776.0,91755.0,0.1]
[1732070544340,0.19086255,91775.0,91755.0,0.19744265]
[1732070544587,0.0478,91772.0,91753.0,0.1]
[1732070544755,0.0478,91772.0,91747.0,0.1948853]
[1732070544756,0.0763,91769.0,91755.0,0.04310701]
[1732070544965,0.0763,91767.0,91750.0,0.1]
[1732070545244,0.00272452,91766.0,91750.0,0.1]
[1732070545429,0.10906255,91765.0,91750.0,0.1]
[1732070545639,0.00272478,91764.0,91750.0,0.1]
[1732070545844,0.00272478,91764.0,91743.0,0.14616397]
[1732070545845,0.10906255,91763.0,91747.0,0.04411101]
[1732070546133,0.00272478,91762.0,91747.0,0.04411101]
[1732070546371,0.00272478,91762.0,91745.0,0.1]
[1732070546372,0.10906255,91761.0,91745.0,0.1]
[1732070546610,0.00272478,91760.0,91745.0,0.1]
[1732070546817,0.00464872,91760.0,91745.0,0.10217982]
[1732070547032,0.00192407,91760.0,91745.0,0.19962247]
[1732070547329,0.00272458,91766.0,91745.0,0.09962247]
[1732070547524,0.00272458,91766.0,91745.0,0.09744265]
[1732070547761,0.00192642,91765.0,91745.0,0.09744265]
[1732070547993,0.00272458,91764.0,91746.0,0.00217966]
[1732070548422,0.00272458,91764.0,91746.0,0.10217966]
[1732070548667,0.00272458,91766.0,91746.0,0.10217966]
[1732070549354,0.00272458,91766.0,91746.0,0.19962231]
[1732070549590,0.00272458,91766.0,91746.0,0.10217966]
[1732070549831,0.07902458,91767.0,91746.0,0.10217966]
[1732070550037,0.00272444,91766.0,91746.0,0.10217966]
[1732070550266,0.00272444,91766.0,91746.0,0.19962231]
[1732070550267,0.00465133,91766.0,91746.0,0.19962231]
[1732070550691,0.00272444,91766.0,91746.0,0.19962231]
[1732070550943,0.0477539,91770.0,91749.0,0.09744265]
[1732070551164,0.0477539,91770.0,91752.0,0.19744265]
[1732070551440,0.0477539,91770.0,91750.0,0.1941419]
[1732070551441,0.0008539,91770.0,91754.0,0.1]
[1732070551642,0.0008539,91770.0,91755.0,0.00217934]
[1732070552309,0.0008539,91770.0,91754.0,0.1]
[1732070554103,0.0008539,91770.0,91751.0,0.09744265]
[1732070554104,0.0763,91768.0,91751.0,0.09744265]
[1732070554319,0.0763,91768.0,91746.0,0.1948853]
[1732070554320,0.00272433,91767.0,91747.0,0.09744265]
[1732070554582,0.00272433,91767.0,91749.0,0.1]
[1732070554583,0.0046552,91767.0,91749.0,0.1]
[1732070554821,0.00272433,91767.0,91749.0,0.1]
[1732070555690,0.00272433,91767.0,91747.0,0.09744265]
[1732070555904,0.00272433,91767.0,91748.0,0.1]
[1732070557690,0.00272433,91767.0,91749.0,0.09744265]
[1732070558333,0.00272433,91767.0,91750.0,0.09744265]
[1732070558768,0.00272433,91767.0,91749.0,0.09744265]
[1732070559242,0.0008539,91770.0,91746.0,0.14185219]
[1732070559243,0.0763,91764.0,91746.0,0.14185219]
[1732070559469,0.00272457,91763.0,91746.0,0.04440954]
[1732070559672,0.00465356,91763.0,91746.0,0.14185219]
[1732070560000,0.00465356,91763.0,91745.0,0.0017078]
[1732070560001,0.0757,91762.0,91745.0,0.0017078]
[1732070560150,0.12442467,91761.0,91745.0,0.04529073]
[1732070560502,0.0008539,91770.0,91769.0,0.033]
[1732070560696,0.0017074,91786.0,91769.0,0.033]
[1732070560697,0.0017074,91786.0,91770.0,0.11]
[1732070560856,0.0017074,91786.0,91772.0,0.1]
[1732070561284,0.0757,91785.0,91772.0,0.1]
[1732070562400,0.0757,91785.0,91772.0,0.14387001]
[1732070563324,0.0017074,91786.0,91773.0,0.11124151]
[1732070563499,0.0017074,91786.0,91774.0,0.1]
[1732070563742,0.0017074,91786.0,91776.0,0.1]
[1732070563955,0.0017074,91786.0,91777.0,0.0021788]
[1732070567516,0.0017074,91786.0,91779.0,0.1]
[1732070567729,0.0017074,91786.0,91781.0,0.1]
[1732070567985,0.0017074,91786.0,91782.0,0.00217874]
[1732070570723,0.0017074,91786.0,91781.0,0.1]
[1732070570958,0.0017074,91794.0,91793.0,0.033]
[1732070571190,0.082,91817.0,91798.0,0.023]
[1732070571409,0.082,91817.0,91799.0,0.10906255]
[1732070571725,0.082,91817.0,91800.0,0.1]
[1732070571873,0.082,91817.0,91802.0,0.1]
[1732070572100,0.082,91817.0,91804.0,0.1]
[1732070573724,0.082,91817.0,91791.0,0.09729743]
[1732070573935,0.00108808,91816.0,91792.0,0.10906255]
[1732070574166,0.082,91817.0,91798.0,0.023]
[1732070574392,0.082,91817.0,91799.0,0.11124074]
[1732070574639,0.082,91817.0,91800.0,0.1]
[1732070574862,0.082,91817.0,91801.0,0.11124075]
[1732070575091,0.082,91817.0,91802.0,0.1]
[1732070575311,0.082,91817.0,91804.0,0.1]
[1732070575533,0.082,91817.0,91802.0,0.1]
[1732070575534,0.0008533,91833.0,91818.0,0.01]
[1732070575817,0.0008533,91833.0,91827.0,0.1]
[1732070575994,0.0008533,91833.0,91828.0,0.00217761]
[1732070576218,0.0008533,91833.0,91829.0,0.1]
[1732070576439,0.0008533,91833.0,91830.0,0.02760272]
[1732070576670,0.0008533,91833.0,91830.0,0.06505296]
[1732070577155,0.0008533,91833.0,91830.0,0.02760272]
[1732070577599,0.0008533,91833.0,91830.0,0.00217755]
[1732070578942,0.0008533,91833.0,91832.0,0.01]
[1732070579147,0.0008538,91862.0,91838.0,0.023]
[1732070579329,0.0008538,91862.0,91837.0,0.01]
[1732070579330,0.0008538,91862.0,91850.0,0.1]
[1732070579540,0.0008538,91862.0,91851.0,0.11123975]
[1732070579781,0.0008538,91862.0,91852.0,0.1]
[1732070579984,0.0008538,91862.0,91852.0,0.20906255]
[1732070581556,0.0008538,91862.0,91853.0,0.03139288]
[1732070581779,0.0008538,91862.0,91854.0,0.00217702]
[1732070582252,0.0008538,91862.0,91855.0,0.03139288]
[1732070582443,0.0008538,91862.0,91852.0,0.20906255]
[1732070583361,0.0008538,91862.0,91852.0,0.04345258]
[1732070583585,0.1274,91858.0,91852.0,0.14345258]
[1732070583789,0.12911555,91858.0,91852.0,0.1]
[1732070584244,0.00171555,91858.0,91854.0,0.1]
[1732070584467,0.0008538,91878.0,91867.0,0.023]
[1732070584665,0.0008538,91878.0,91868.0,0.10906255]
[1732070584891,0.0008538,91878.0,91869.0,0.1]
[1732070585150,0.0008538,91878.0,91871.0,0.1]
[1732070585454,0.0008538,91878.0,91872.0,0.10906255]
[1732070585592,0.0008538,91878.0,91873.0,0.1]
[1732070585822,0.0008538,91878.0,91873.0,0.20906255]
[1732070586502,0.0008538,91878.0,91873.0,0.1]
[1732070586728,0.0008538,91878.0,91865.0,0.00217675]
[1732070586919,0.0008538,91878.0,91857.0,0.1]
[1732070587173,0.0008538,91878.0,91865.0,0.04447024]
[1732070587393,0.0008538,91878.0,91866.0,0.00217675]
[1732070587600,0.0008538,91878.0,91858.0,0.15954981]
[1732070587601,0.0008538,91878.0,91875.0,0.1]
[1732070588270,0.0008538,91878.0,91857.0,0.04343368]
[1732070588484,0.0008538,91878.0,91859.0,0.1]
[1732070588711,0.0008538,91878.0,91859.0,0.20906255]
[1732070589186,0.12848808,91877.0,91859.0,0.1]
[1732070589621,0.12848808,91877.0,91847.0,0.01]
[1732070589809,0.12848808,91877.0,91849.0,0.123]
[1732070590070,0.12848808,91877.0,91851.0,0.1]
[1732070590277,0.12848808,91877.0,91852.0,0.10906255]
[1732070590484,0.12848808,91877.0,91853.0,0.1]
[1732070590703,0.12848808,91877.0,91869.0,0.1]
[1732070591132,0.10906255,91876.0,91838.0,0.01]
[1732070591355,0.10906255,91876.0,91827.0,0.0789]
[1732070591356,0.0824,91873.0,91839.0,0.10906255]
[1732070591588,0.0824,91873.0,91833.0,0.01]
[1732070591589,0.0824,91869.0,91838.0,0.10906255]
[1732070591822,0.11015063,91868.0,91838.0,0.10906255]
[1732070592090,0.11183382,91868.0,91825.0,0.0446996]
[1732070592456,0.0824,91862.0,91826.0,0.10906255]
[1732070592530,0.11183382,91868.0,91811.0,0.1461283]
[1732070592531,0.1287,91856.0,91812.0,0.01]
[1732070592681,0.02,91858.0,91812.0,0.01]
[1732070592682,0.0824,91854.0,91817.0,0.04491132]
[1732070592953,0.0824,91854.0,91812.0,0.01]
[1732070592954,0.11015063,91853.0,91818.0,0.11124028]
[1732070593165,0.111925,91853.0,91818.0,0.11124028]
[1732070593920,0.01,91848.0,91818.0,0.00217773]
[1732070594070,0.0824,91845.0,91812.0,0.00217799]
[1732070594298,0.11015063,91844.0,91812.0,0.00217799]
[1732070594522,0.11187808,91844.0,91812.0,0.00217799]
[1732070594995,0.11187808,91844.0,91811.0,0.10906255]
[1732070595296,0.11187808,91844.0,91795.0,0.01]
[1732070595467,0.11187808,91844.0,91747.0,0.0017078]
[1732070595468,0.1287,91839.0,91796.0,0.10906255]
[1732070595646,0.11015063,91838.0,91796.0,0.10906255]
[1732070595854,0.11186621,91838.0,91797.0,0.00217814]
[1732070596084,0.11186621,91838.0,91798.0,0.10906255]
[1732070596605,0.05237831,91837.0,91818.0,0.0017064]
[1732070596818,0.16252894,91836.0,91818.0,0.0017064]
[1732070597023,0.05237831,91835.0,91818.0,0.0017064]
[1732070597291,0.16252894,91834.0,91818.0,0.0017064]
[1732070597465,0.05237831,91833.0,91818.0,0.0017064]
[1732070597708,0.05346639,91832.0,91818.0,0.0017064]
[1732070597916,0.02015977,91831.0,91818.0,0.0017064]
[1732070598132,0.02124785,91830.0,91818.0,0.0017064]
[1732070598365,0.02015977,91829.0,91818.0,0.0017064]
[1732070598585,0.02126668,91828.0,91818.0,0.0017064]
[1732070598812,0.0201786,91827.0,91818.0,0.0017064]
[1732070599036,0.00108808,91826.0,91818.0,0.0017064]
[1732070599249,0.0027899,91826.0,91818.0,0.0017064]
[1732070599490,0.00170182,91826.0,91818.0,0.0017064]
[1732070599954,0.00108808,91832.0,91818.0,0.0017064]
[1732070600173,0.00170126,91825.0,91818.0,0.0017064]
[1732070600452,0.00108808,91832.0,91818.0,0.0017064]
[1732070600623,0.0016971,91824.0,91818.0,0.0017064]
[1732070600825,0.00108808,91832.0,91818.0,0.0017064]
[1732070601030,0.00169654,91823.0,91818.0,0.0017064]
[1732070601240,0.00108808,91832.0,91818.0,0.0017064]
[1732070601635,0.00169598,91822.0,91818.0,0.0017064]
[1732070602102,0.00108808,91832.0,91818.0,0.0017064]
[1732070602103,0.1287,91821.0,91818.0,0.0017064]
[1732070602110,0.00108808,91820.0,91818.0,0.0017064]
[1732070602461,0.00167269,91819.0,91818.0,0.0017064]
[1732070602682,0.06775522,91819.0,91818.0,0.0017064]
[1732070603332,0.05417033,91819.0,91818.0,0.0017064]
[1732070603808,0.02186409,91819.0,91818.0,0.0017064]
[1732070604455,0.0201914,91819.0,91818.0,0.0017064]
[1732070604713,0.05249485,91819.0,91818.0,0.0017064]
[1732070605106,0.02188601,91819.0,91818.0,0.0017064]
[1732070605583,0.08348808,91830.0,91818.0,0.0017064]
[1732070605813,0.00169943,91819.0,91818.0,0.0017064]
[1732070606027,0.00108808,91828.0,91818.0,0.0017064]
[1732070606252,0.02019222,91827.0,91818.0,0.0017064]
[1732070606475,0.0212803,91826.0,91818.0,0.0017064]
[1732070606681,0.00108808,91826.0,91818.0,0.0017064]
[1732070606890,0.00170245,91825.0,91818.0,0.0017064]
[1732070607543,0.00108808,91829.0,91818.0,0.0017064]
[1732070607754,0.00170182,91824.0,91818.0,0.0017064]
[1732070607966,0.00108808,91829.0,91818.0,0.0017064]
[1732070608190,0.00170119,91823.0,91818.0,0.0017064]
[1732070608410,0.00108808,91829.0,91818.0,0.0017064]
[1732070608923,0.00170432,91828.0,91818.0,0.0017064]
[1732070609097,0.00108808,91827.0,91818.0,0.0017064]
[1732070609413,0.02019418,91826.0,91818.0,0.0017064]
[1732070609594,0.16264892,91825.0,91818.0,0.0017064]
[1732070609821,0.0798,91823.0,91818.0,0.0017064]
[1732070610049,0.0798,91821.0,91818.0,0.0017064]
[1732070610287,0.16264892,91822.0,91818.0,0.0017064]
[1732070610288,0.16264892,91820.0,91818.0,0.0017064]
[1732070610501,0.18939829,91819.0,91818.0,0.0017064]
[1732070610723,0.29846084,91819.0,91818.0,0.0017064]
[1732070611014,0.29037026,91819.0,91818.0,0.0017064]
[1732070611643,0.29036756,91819.0,91818.0,0.0017064]
[1732070614340,0.31036756,91819.0,91818.0,0.0017064]
[1732070614772,0.3239528,91819.0,91818.0,0.0017064]
[1732070615309,0.3259528,91819.0,91818.0,0.0017064]
[1732070615506,0.3239528,91819.0,91818.0,0.0017064]
[1732070615940,0.3259528,91819.0,91818.0,0.0017064]
[1732070616166,0.01,91805.0,91777.0,0.0017078]
[1732070616395,0.17623027,91804.0,91777.0,0.0017078]
[1732070616601,0.0524944,91803.0,91777.0,0.0017078]
[1732070616833,0.16264503,91802.0,91777.0,0.04530689]
[1732070617054,0.0524944,91801.0,91777.0,0.0017078]
[1732070617360,0.05358248,91800.0,91777.0,0.0017078]
[1732070617505,0.0524944,91799.0,91777.0,0.0017078]
[1732070617720,0.02127823,91798.0,91779.0,0.1]
[1732070617956,0.00108808,91798.0,91779.0,0.1]
[1732070618181,0.02019928,91797.0,91779.0,0.1]
[1732070618433,0.02128736,91796.0,91779.0,0.1]
[1732070618613,0.02019928,91795.0,91777.0,0.0017078]
[1732070618847,0.00108808,91794.0,91777.0,0.0017078]
[1732070619070,0.00185491,91795.0,91777.0,0.0017078]
[1732070619304,0.0018535,91793.0,91777.0,0.0017078]
[1732070619531,0.00185421,91794.0,91777.0,0.0017078]
[1732070619745,0.00108808,91800.0,91777.0,0.0017078]
[1732070619746,0.0018528,91792.0,91777.0,0.0017078]
[1732070620181,0.00108808,91800.0,91777.0,0.0017078]
[1732070620398,0.00185209,91791.0,91779.0,0.1]
[1732070620632,0.00108808,91798.0,91779.0,0.10217892]
[1732070620852,0.00108808,91800.0,91779.0,0.10217892]
[1732070621066,0.00185632,91797.0,91779.0,0.10217892]
[1732070621276,0.00108808,91796.0,91779.0,0.00217892]
[1732070621550,0.00185562,91796.0,91779.0,0.00217892]
[1732070621690,0.00108808,91795.0,91779.0,0.00217892]
[1732070621906,0.01,91790.0,91758.0,0.04360881]
[1732070622129,0.0797,91789.0,91766.0,0.10906255]
[1732070622376,0.08155068,91789.0,91767.0,0.02517892]
[1732070622637,0.08155068,91789.0,91768.0,0.10906255]
[1732070623133,0.01,91781.0,91759.0,0.023]
[1732070623290,0.01,91781.0,91758.0,0.04462438]
[1732070623291,0.01,91770.0,91758.0,0.04462438]
[1732070623542,0.01,91769.0,91758.0,0.04462438]
[1732070623793,0.01,91765.0,91727.0,0.01]
[1732070623966,0.03025091,91764.0,91748.0,0.10906255]
[1732070624181,0.02025091,91763.0,91748.0,0.10906255]
[1732070624448,0.01,91762.0,91747.0,0.04635426]
[1732070624741,0.03025091,91761.0,91747.0,0.04635426]
[1732070624885,0.01158799,91761.0,91747.0,0.0017078]
[1732070625524,0.01,91758.0,91747.0,0.0017078]
[1732070625780,0.01,91758.0,91748.0,0.00217965]
[1732070625944,0.00158548,91757.0,91748.0,0.00217965]
[1732070626158,0.00158548,91757.0,91749.0,0.1]
[1732070626372,0.01,91758.0,91748.0,0.00217965]
[1732070627938,0.01,91758.0,91750.0,0.1]
[1732070628203,0.01,91758.0,91748.0,0.00217965]
[1732070628656,0.01,91758.0,91750.0,0.1]
[1732070628879,0.00272456,91771.0,91751.0,0.00217965]
[1732070629135,0.01,91766.0,91752.0,0.1]
[1732070629331,0.01,91766.0,91753.0,0.00217945]
[1732070631392,0.0008547,91762.0,91753.0,0.00217945]
[1732070632060,0.0008547,91762.0,91755.0,0.1]
[1732070632285,0.0008547,91762.0,91756.0,0.1342418]
[1732070632498,0.0008547,91762.0,91757.0,0.1]
[1732070632726,0.0008547,91762.0,91759.0,0.1]
[1732070632937,0.0008547,91762.0,91760.0,0.11124181]
[1732070633204,0.0008547,91762.0,91761.0,0.1]
[1732070633405,0.0008547,91762.0,91761.0,0.20906255]
[1732070633626,0.0008547,91762.0,91761.0,0.1]
[1732070634053,0.0008547,91762.0,91747.0,0.0017078]
[1732070634275,0.0008547,91762.0,91749.0,0.1]
[1732070634538,0.01,91758.0,91749.0,0.1]
[1732070634760,0.0797,91757.0,91749.0,0.1]
[1732070635395,0.0797,91757.0,91747.0,0.04576841]
[1732070635635,0.0797,91757.0,91754.0,0.1]
[1732070635875,0.0797,91757.0,91747.0,0.04576841]
[1732070636091,0.0797,91757.0,91754.0,0.1]
[1732070636733,0.0797,91757.0,91747.0,0.04576841]
[1732070637152,0.0797,91757.0,91754.0,0.1]
[1732070637429,0.0797,91757.0,91747.0,0.04576841]
[1732070638448,0.01,91752.0,91747.0,0.04576841]
[1732070638680,0.01,91748.0,91747.0,0.04576841]
[1732070641043,0.01,91749.0,91747.0,0.04576841]
[1732070641483,0.01,91748.0,91747.0,0.04576841]
[1732070641699,0.01,91749.0,91747.0,0.04576841]
[1732070642167,0.01,91748.0,91747.0,0.04576841]
[1732070643784,0.01,91754.0,91747.0,0.04576841]
[1732070647319,0.0797,91757.0,91747.0,0.04576841]
[1732070647774,0.0008547,91762.0,91749.0,0.1]
[1732070648001,0.0008547,91762.0,91750.0,0.00217952]
[1732070655588,0.0008547,91762.0,91751.0,0.20906255]
[1732070655812,0.0008547,91762.0,91752.0,0.00217943]
[1732070656040,0.0008547,91762.0,91753.0,0.10906255]
[1732070656251,0.0008547,91762.0,91754.0,0.10217938]
[1732070656500,0.0008547,91762.0,91755.0,0.10906255]
[1732070656731,0.0008547,91762.0,91756.0,0.10217938]
[1732070656996,0.0797,91783.0,91759.0,0.023]
[1732070657212,0.0797,91791.0,91774.0,0.1]
[1732070657521,0.0797,91791.0,91776.0,0.1]
[1732070657678,0.01,91795.0,91776.0,0.20906255]
[1732070657932,0.01,91797.0,91777.0,0.00217882]
[1732070658159,0.01,91797.0,91778.0,0.10906255]
[1732070658373,0.01,91797.0,91779.0,0.00217873]
[1732070659318,0.0897,91798.0,91779.0,0.00217873]
[1732070659646,0.0897,91798.0,91779.0,0.10217873]
[1732070659773,0.01,91797.0,91779.0,0.10217873]
[1732070660036,0.0797,91798.0,91779.0,0.10217873]
[1732070660276,0.01,91797.0,91779.0,0.10217873]
[1732070660724,0.0797,91798.0,91779.0,0.10217873]
[1732070661343,0.01,91797.0,91779.0,0.10217873]
[1732070661570,0.0797,91798.0,91779.0,0.10217873]
[1732070662017,0.0797,91798.0,91781.0,0.1]
[1732070662263,0.0476,91804.0,91784.0,0.023]
[1732070662264,0.01,91804.0,91784.0,0.023]
[1732070662495,0.01,91804.0,91793.0,0.1]
[1732070662707,0.01,91806.0,91794.0,0.00217856]
[1732070663435,0.0576,91814.0,91794.0,0.00217856]
[1732070663661,0.0127232,91835.0,91796.0,0.1]
[1732070663662,0.0797,91815.0,91796.0,0.1]
[1732070663930,0.0476,91824.0,91798.0,0.1]
[1732070663931,0.0797,91822.0,91798.0,0.1]
[1732070664118,0.00178184,91814.0,91799.0,0.13424075]
[1732070664356,0.00178184,91814.0,91802.0,0.0457]
[1732070664557,0.01,91831.0,91803.0,0.13424048]
[1732070664797,0.01,91831.0,91805.0,0.023]
[1732070665076,0.0797,91832.0,91808.0,0.023]
[1732070665286,0.0797,91832.0,91811.0,0.023]
[1732070665519,0.0476,91843.0,91809.0,0.11124038]
[1732070665520,0.0924,91841.0,91813.0,0.123]
[1732070665744,0.0924,91841.0,91815.0,0.123]
[1732070666004,0.0924,91841.0,91817.0,0.123]
[1732070666208,0.0924,91841.0,91819.0,0.123]
[1732070666480,0.0924,91841.0,91821.0,0.123]
[1732070666716,0.0924,91841.0,91822.0,0.00217769]
[1732070668526,0.0924,91841.0,91821.0,0.23206255]
[1732070668730,0.0924,91841.0,91822.0,0.00217769]
[1732070668962,0.08977231,91841.0,91822.0,0.00217769]
[1732070670940,0.08977231,91841.0,91821.0,0.2757091]
[1732070670941,0.08977231,91841.0,91821.0,0.04364655]
[1732070671390,0.08977231,91841.0,91812.0,0.00262769]
[1732070671605,0.08977231,91841.0,91813.0,0.10906255]
[1732070672037,0.00737231,91836.0,91807.0,0.01]
[1732070672349,0.10906255,91840.0,91791.0,0.002]
[1732070672350,0.00737231,91832.0,91808.0,0.10906255]
[1732070672888,0.00737231,91837.0,91808.0,0.10906255]
[1732070673101,0.11643486,91837.0,91809.0,0.1]
[1732070673346,0.10906255,91837.0,91809.0,0.1]
[1732070673959,0.00737231,91832.0,91809.0,0.1]
[1732070674217,0.11643486,91837.0,91809.0,0.1]
[1732070674413,0.00272239,91836.0,91809.0,0.1]
[1732070675084,0.00737231,91832.0,91809.0,0.1]
[1732070676623,0.11915725,91837.0,91809.0,0.20906255]
[1732070676789,0.09249454,91841.0,91811.0,0.1]
[1732070676992,0.00737231,91838.0,91813.0,0.1]
[1732070677170,0.00272223,91840.0,91813.0,0.20906255]
[1732070677355,0.01009454,91840.0,91813.0,0.20906255]
[1732070677755,0.0824,91841.0,91813.0,0.20906255]
[1732070677756,0.00737231,91838.0,91815.0,0.1]
[1732070677976,0.00737231,91838.0,91816.0,0.1]
[1732070678892,0.09066837,91841.0,91816.0,0.1]
[1732070679525,0.09066837,91841.0,91818.0,0.1]
[1732070683504,0.09066837,91841.0,91827.0,0.1]
[1732070683505,0.0789,91833.0,91827.0,0.1]
[1732070683707,0.0789,91833.0,91811.0,0.1]
[1732070683909,0.0789,91833.0,91813.0,0.1]
[1732070684131,0.0789,91833.0,91827.0,0.1]
[1732070684983,0.0789,91833.0,91815.0,0.1]
[1732070685196,0.0789,91833.0,91816.0,0.10906255]
[1732070685422,0.0789,91833.0,91817.0,0.1]
[1732070685663,0.0789,91833.0,91817.0,0.20906255]
[1732070686088,0.0789,91833.0,91827.0,0.1]
[1732070686494,0.0789,91833.0,91818.0,0.1]
[1732070691178,0.0789,91833.0,91818.0,0.14504789]
[1732070691379,0.0789,91833.0,91818.0,0.14675609]
[1732070698029,0.0789,91833.0,91818.0,0.25581864]
[1732070698484,0.0789,91833.0,91812.0,0.00262769]
[1732070698703,0.0789,91833.0,91813.0,0.10906255]
[1732070700465,0.0789,91833.0,91814.0,0.1]
[1732070700776,0.0789,91833.0,91815.0,0.10906255]
[1732070700950,0.0789,91833.0,91816.0,0.1]
[1732070701171,0.0789,91833.0,91818.0,0.1]
[1732070701410,0.08527231,91831.0,91818.0,0.1]
[1732070702123,0.08527231,91831.0,91812.0,0.04341331]
[1732070702350,0.028934,91825.0,91809.0,0.0017082]
[1732070703252,0.028934,91825.0,91815.0,0.0017082]
[1732070703967,0.0779,91824.0,91815.0,0.0017082]
[1732070704191,0.0493,91820.0,91815.0,0.0017082]
[1732070704416,0.0779,91819.0,91815.0,0.0017082]
[1732070706247,0.0779,91819.0,91816.0,0.1]
[1732070706462,0.028934,91825.0,91816.0,0.1]
[1732070706463,0.01264629,91825.0,91816.0,0.1]
[1732070707369,0.01264629,91825.0,91823.0,0.09660656]
[1732070708281,0.01264629,91825.0,91824.0,0.1]
[1732070708541,0.00737231,91847.0,91824.0,0.1]
[1732070708542,0.0274941,91836.0,91825.0,0.03470114]
[1732070708753,0.00357553,91859.0,91825.0,0.03470114]
[1732070708754,0.0008532,91859.0,91835.0,0.09757628]
[1732070709008,0.0008532,91859.0,91825.0,0.03470114]
[1732070709009,0.03982366,91852.0,91840.0,0.1]
[1732070709346,0.03982366,91852.0,91849.0,0.24634283]
[1732070709532,0.03982366,91852.0,91850.0,0.24634283]
[1732070710550,0.0008532,91859.0,91850.0,0.24634283]
[1732070710788,0.0008532,91859.0,91853.0,0.1]
[1732070711785,0.08,91877.0,91857.0,0.1]
[1732070711792,0.08,91877.0,91873.0,0.09748964]
[1732070712174,0.08,91877.0,91873.0,0.1]
[1732070712388,0.08,91877.0,91872.0,0.09748964]
[1732070712811,0.08,91877.0,91871.0,0.1]
[1732070712812,0.08,91877.0,91873.0,0.09748964]
[1732070713251,0.08,91877.0,91871.0,0.19748964]
[1732070713486,0.08,91877.0,91875.0,0.09733559]
[1732070713685,0.08,91877.0,91872.0,0.1]
[1732070713686,0.0008538,91878.0,91874.0,0.24600339]
[1732070713912,0.0008538,91878.0,91877.0,0.19731638]
[1732070714126,0.0008538,91878.0,91877.0,0.1246724]
[1732070714340,0.0008538,91878.0,91877.0,0.1]
[1732070714989,0.0008538,91878.0,91875.0,0.09723936]
[1732070715232,0.0008538,91878.0,91872.0,0.19723936]
[1732070716115,0.0008541,91877.0,91872.0,0.19723936]
[1732070716364,0.0008541,91877.0,91871.0,0.04359736]
[1732070716571,0.0008541,91877.0,91869.0,0.09723936]
[1732070716817,0.0466,91876.0,91868.0,0.09723936]